fUSD/lending_fUSD_20240602
["ID","MTS","AMOUNT","RATE_DAILY","PERIOD"]
[328386212,1717313438482,-1632.925,0.00018669,2]
[328386213,1717313438492,-1266.0,0.00018669,2]
[328386214,1717313438502,-2121.0,0.00018669,2]
[328386215,1717313438511,-435.46,0.00018686,2]
[328386216,1717313438521,-344.6322773,0.00019,2]
[328386217,1717313438591,-66.61141666,0.00019,2]
[328386219,1717313438601,-197.62858334,0.00019,2]
[328386246,1717313441424,-30000.0,0.00019,2]
[328386307,1717313443801,-48750.99621993,0.00019,2]
[328386308,1717313443811,-751.9104142,0.00019,2]
[328386309,1717313443820,-1330.63515705,0.00019093,2]
[328386310,1717313443831,-728.72484295,0.00019093,2]
[328386311,1717313443840,-122.43986677,0.00019331,2]
[328386313,1717313446454,-27.1384,0.00019331,2]
[328386314,1717313446466,-748.757,0.00019331,2]
[328386315,1717313446544,-11387.42473323,0.00019331,2]
[328386316,1717313446553,-250.0,0.00019331,2]
[328386317,1717313446563,-3471.05108638,0.00019331,2]
[328386318,1717313446572,-250.0,0.00019334,2]
[328386319,1717313446581,-23860.0,0.00019412,2]
[328386320,1717313446591,-863.57303464,0.0002,2]
[328386321,1717313446609,-634.94381214,0.0002,2]
[328386322,1717313446620,-1777.58503617,0.0002,2]
[328386323,1717313446631,-6253.29174589,0.0002,2]
[328386324,1717313446640,-156.08857812,0.0002,2]
[328386325,1717313446650,-155.0,0.0002,2]
[328386326,1717313446659,-226.50923576,0.000201,2]
[328386327,1717313446668,-1152.13,0.00020654,2]
[328386328,1717313446678,-1000.0,0.0002071,2]
[328386329,1717313446688,-184.35,0.00020772,2]
[328386330,1717313446698,-2751.0,0.00020845,2]
[328386331,1717313446707,-200.0,0.00020865,2]
[328386332,1717313446717,-435.46,0.0002095,2]
[328386333,1717313446727,-150.0,0.00020988,2]
[328386334,1717313446736,-705.4557,0.00021642,2]
[328386335,1717313446746,-4269.44,0.00021654,2]
[328386336,1717313446755,-2121.0,0.00021669,2]
[328386337,1717313446765,-20155.36783767,0.000219,2]
[328386341,1717313634023,6699.37560113,0.00034587,30]
[328386342,1717313643897,5225.64374217,0.00034587,30]
[328386362,1717313890189,-2367.58913066,0.00013899,2]
[328386363,1717313890211,-1333.78907649,0.000139,2]
[328386364,1717313890233,-18970.9416,0.000139,2]
[328386365,1717313890260,-1599.43619038,0.000139,2]
[328386366,1717313890281,-4091.13966222,0.000139,2]
[328386367,1717313890304,-4754.35084887,0.00013999,2]
[328386368,1717313890329,-2930884.25012369,0.00014,2]
[328386369,1717313890497,-258998.50336769,0.00014,2]
[328386370,1717313892621,319.88,0.00029808,30]
[328386371,1717313895006,-4000.0,0.00014,2]
[328386372,1717313895743,-4000.0,0.00014,2]
[328386373,1717313896101,-4000.0,0.00014,2]
[328386374,1717313896546,-4000.0,0.00014,2]
[328386375,1717313897364,-4000.0,0.00014,2]
[328386376,1717313898409,-4000.0,0.00014,2]
[328386377,1717313898923,-4000.0,0.00014,2]
[328386378,1717313899247,-4000.0,0.00014,2]
[328386379,1717313899635,-4000.0,0.00014,2]
[328386380,1717313899960,-4000.0,0.00014,2]
[328386381,1717313900386,-4000.0,0.00014,2]
[328386382,1717313900775,-4000.0,0.00014,2]
[328386383,1717313901179,-4000.0,0.00014,2]
[328386384,1717313901856,-4000.0,0.00014,2]
[328386385,1717313902466,-4000.0,0.00014,2]
[328386386,1717313903300,-4000.0,0.00014,2]
[328386387,1717313903982,-4000.0,0.00014,2]
[328386388,1717313908119,-4000.0,0.00014,2]
[328386389,1717313909917,-4000.0,0.00013999,2]
[328386390,1717313919381,-306.94,0.00013999,2]
[328386392,1717314494018,293.22,0.00029808,30]
[328386411,1717314632693,-0.0075107,0.0001399,2]
[328386412,1717314632706,-153.8224893,0.0001399,2]
[328386413,1717314632715,-290.2375107,0.00013999,2]
[328386414,1717314632731,-140.23318078,0.00013999,2]
[328386416,1717314632740,-247.70886637,0.00013999,2]
[328386418,1717314632757,-8714.77329255,0.00013999,2]
[328386420,1717314632769,-3836.3329704,0.00013999,2]
[328386423,1717314632780,-1346.78709982,0.00013999,2]
[328386426,1717314632799,-945.02971513,0.00013999,2]
[328386428,1717314632811,-57202.6319067,0.00013999,2]
[328386430,1717314632822,-318.64482262,0.00013999,2]
[328386432,1717314632833,-374.10436896,0.00013999,2]
[328386435,1717314632845,-175144.67440472,0.00013999,2]
[328386498,1717314638363,-371.59143874,0.00013999,2]
[328386499,1717314638524,-128501.57660593,0.00013999,2]
[328386500,1717314638536,-9432.06973771,0.00013999,2]
[328386501,1717314638579,-5749.7944879,0.00013999,2]
[328386502,1717314638591,-1405.49514613,0.00013999,2]
[328386513,1717314640854,-3207.735,0.00013999,2]
[328386514,1717314641488,-9350.457445,0.00013999,2]
[328386515,1717314641543,-128477.25226292,0.00013999,2]
[328386516,1717314641556,-1095.41210428,0.00013999,2]
[328386517,1717314641599,-308.94361421,0.00013999,2]
[328386518,1717314641611,-618.63300473,0.00013999,2]
[328386519,1717314641655,-317.6381569,0.00013999,2]
[328386546,1717314643601,-1889.08592415,0.00013999,2]
[328386547,1717314643612,-4093.89660768,0.00013999,2]
[328386548,1717314643676,-1370.64,0.00013999,2]
[328386549,1717314643689,-1627.66785264,0.00013999,2]
[328386550,1717314643785,-144304.58378321,0.00013999,2]
[328386551,1717314643795,-236045.4188266,0.00014,2]
[328386552,1717314643893,-250.05638579,0.00014,2]
[328386825,1717314646578,-188.13218768,0.00014,2]
[328386829,1717314646594,-2990.778085,0.00014,2]
[328386831,1717314646605,-677.57587675,0.00014,2]
[328386833,1717314646616,-11335.725143,0.00014,2]
[328387070,1717314736000,-259.57,0.00033151,120]
[328387071,1717314736032,-150.0,0.00033163,120]
[328387072,1717314736072,-200.0,0.00033454,120]
[328387073,1717314736100,-150.0,0.00033499,120]
[328387074,1717314736129,-150.0,0.0003358,120]
[328387075,1717314736160,-150.0,0.00033776,120]
[328387076,1717314736188,-150.0,0.00033779,120]
[328387079,1717314958527,690.0,0.00034647,30]
[328387080,1717314968329,150.0,0.00034647,30]
[328387083,1717315178638,268.78,0.00029808,30]
[328387085,1717315543764,343.0,0.00034638,30]
[328387086,1717315548197,405.8,0.0001357,2]
[328387088,1717315767300,246.38,0.00029808,30]
[328387090,1717315821461,12500.0,0.0003,30]
[328387102,1717315831749,-429.23042543,0.00013859,2]
[328387103,1717315831758,-235.32635,0.0001386,2]
[328387104,1717315831767,-506.78433231,0.00013899,2]
[328387105,1717315831778,-179.69176769,0.00013899,2]
[328387106,1717315831930,-1564.99289333,0.00013998,2]
[328387107,1717315831940,-150.0,0.00013999,2]
[328387108,1717315831949,-300.0,0.00013999,2]
[328387109,1717315831959,-1627.16286839,0.00014,2]
[328387110,1717315831978,-1161.74539241,0.00014,2]
[328387111,1717315832000,-1388.74048316,0.00014,2]
[328387154,1717315837585,-1208.81908679,0.00014,2]
[328387155,1717315837642,-335.22995312,0.00014,2]
[328387156,1717315837696,-608.78013881,0.00014,2]
[328387157,1717315837707,-9992.83246852,0.00014,2]
[328387158,1717315837720,-1081.44168439,0.00014,2]
[328387159,1717315837752,-3893.46144918,0.00014,2]
[328387160,1717315837762,-200.0,0.00015369,2]
[328387161,1717315837771,-150.0,0.00015384,2]
[328387162,1717315837781,-1836.22,0.00015391,2]
[328387163,1717315837790,-2418.14609108,0.00015465,2]
[328387164,1717315837919,-6056.18390892,0.00015465,2]
[328387165,1717315837929,-1666.71,0.00015482,2]
[328387166,1717315837939,-250.0,0.00015487,2]
[328387167,1717315837949,-1322.49,0.0001549,2]
[328387168,1717315837959,-1852.42,0.00015491,2]
[328387169,1717315837969,-2334.47,0.00015504,2]
[328387171,1717315837979,-499.99,0.00015504,2]
[328387173,1717315837988,-2355.47,0.00015505,2]
[328387175,1717315837998,-283.29,0.00015585,2]
[328387177,1717315838008,-2445.45,0.00015677,2]
[328387179,1717315838017,-576.06,0.00015761,2]
[328387180,1717315838027,-23820.0,0.00015795,2]
[328387181,1717315838037,-447.7,0.00015805,2]
[328387182,1717315838046,-960.0,0.00015828,2]
[328387183,1717315838056,-405.8,0.00015834,2]
[328387184,1717315838066,-225.81,0.00015859,2]
[328387185,1717315838075,-250.0,0.00015879,2]
[328387186,1717315838085,-225.81,0.00015902,2]
[328387187,1717315838095,-163.75,0.00015926,2]
[328387188,1717315838105,-177.58,0.00015927,2]
[328387189,1717315838114,-225.81,0.00015946,2]
[328387190,1717315838125,-225.81,0.00015989,2]
[328387191,1717315838135,-225.81,0.00016033,2]
[328387192,1717315838144,-225.81,0.00016076,2]
[328387193,1717315838153,-225.81,0.0001612,2]
[328387194,1717315838163,-225.81,0.00016163,2]
[328387195,1717315838172,-225.81,0.00016207,2]
[328387196,1717315838182,-225.81,0.0001625,2]
[328387197,1717315838192,-225.81,0.00016294,2]
[328387198,1717315838201,-225.81,0.00016337,2]
[328387199,1717315838211,-235.32635,0.0001636,2]
[328387200,1717315838221,-225.81,0.00016381,2]
[328387201,1717315838233,-225.81,0.00016424,2]
[328387202,1717315838243,-151.0,0.00016459,2]
[328387203,1717315838252,-358.0,0.00016459,2]
[328387204,1717315838262,-268.0,0.00016459,2]
[328387205,1717315838272,-225.81,0.00016468,2]
[328387206,1717315838281,-200.0,0.000165,2]
[328387207,1717315838291,-225.81,0.00016511,2]
[328387208,1717315838301,-225.81,0.00016555,2]
[328387209,1717315838311,-225.81,0.00016598,2]
[328387210,1717315838320,-225.81,0.00016642,2]
[328387211,1717315838329,-225.81,0.00016685,2]
[328387212,1717315838339,-2990.89937712,0.00017225,2]
[328387213,1717315838349,-960.0,0.00017806,2]
[328387214,1717315838358,-181.27433181,0.0001797,2]
[328387215,1717315838367,-168.4188394,0.0001797,2]
[328387216,1717315838377,-1111.58283881,0.0001797,2]
[328387217,1717315838387,-153.83,0.0001799,2]
[328387218,1717315838396,-3995.7843539,0.00017999,2]
[328387236,1717315840227,-694.63902191,0.00017999,2]
[328387251,1717315842647,-1347.46867622,0.00017999,2]
[328387252,1717315842657,-648.94255943,0.00018,2]
[328387253,1717315842667,-13636.08476435,0.00018,2]
[328387254,1717315842679,-29105.91851411,0.00018,2]
[328387255,1717315842813,-3050.0,0.00018,2]
[328387256,1717315842837,-6197.34688742,0.00018,2]
[328387257,1717315842848,-682.93225,0.00018,2]
[328387258,1717315842860,-1501.04668091,0.00018,2]
[328387259,1717315842874,-2623.00964666,0.00018,2]
[328387260,1717315842885,-235776.86454424,0.00018,2]
[328387261,1717315842905,-2017.07915193,0.00018,2]
[328387262,1717315842916,-3239.5228817,0.00018,2]
[328387263,1717315842930,-3863.409,0.00018,2]
[328387264,1717315842949,-15141.06854133,0.00018,2]
[328387265,1717315842961,-498.7999998,0.00018,2]
[328387266,1717315842973,-4650.0,0.00018,2]
[328387267,1717315842999,-2288.35215715,0.00018,2]
[328387277,1717315843383,-1682.775075,0.00018,2]
[328387301,1717315845600,-650.86674475,0.00018,2]
[328387307,1717315846359,-4871.44945435,0.00018,2]
[328387320,1717316101674,10000.0,0.00032,90]
[328387323,1717316390546,225.84,0.00029808,30]
[328387332,1717316839131,-496.84221009,0.00016699,2]
[328387333,1717316948522,207.02,0.00029808,30]
[328387358,1717317031921,-162.14362647,0.00016599,2]
[328387359,1717317031931,-265.73225982,0.00016616,2]
[328387360,1717317031941,-1849.65068324,0.00016699,2]
[328387361,1717317031952,-300.0,0.000167,2]
[328387362,1717317031961,-3277.37923817,0.000168,2]
[328387363,1717317031973,-974.62076183,0.000168,2]
[328387364,1717317031983,-803.0,0.000168,2]
[328387365,1717317031992,-300.0,0.00016859,2]
[328387366,1717317032002,-2121.0,0.00016859,2]
[328387367,1717317032011,-365.22,0.00016992,2]
[328387368,1717317032020,-283.81156,0.0001782,2]
[328387369,1717317032030,-2280.85642573,0.000179,2]
[328387370,1717317032045,-7260.12434325,0.000179,2]
[328387371,1717317032057,-9273.17099168,0.000179,2]
[328387372,1717317032068,-4342.35653934,0.000179,2]
[328387373,1717317032078,-172.70768579,0.000179,2]
[328387374,1717317032087,-3005.18364997,0.000179,2]
[328387375,1717317032099,-1750.0,0.000179,2]
[328387376,1717317032110,-469.02406266,0.000179,2]
[328387407,1717317037983,-4662.3986,0.00016516,2]
[328387408,1717317037994,-1853.0,0.00016859,2]
[328387410,1717317038005,-1600.28381877,0.000179,2]
[328387411,1717317038016,-168.41883938,0.000179,2]
[328387412,1717317038026,-2500.0,0.000179,2]
[328387414,1717317038036,-997.23433025,0.000179,2]
[328387415,1717317038045,-154.11,0.0001799,2]
[328387416,1717317038054,-246.72666541,0.00017999,2]
[328387417,1717317038064,-4277.40535935,0.00017999,2]
[328387418,1717317038074,-10877.80597611,0.00018,2]
[328387419,1717317038098,-83521.76736,0.00018,2]
[328387504,1717317040617,-926.92335614,0.00018,2]
[328387507,1717317040633,-379.235,0.00018,2]
[328387509,1717317040645,-1906.92650009,0.00018,2]
[328387514,1717317040684,-8839.31308668,0.00018,2]
[328387517,1717317040696,-8947.21879473,0.00018,2]
[328387519,1717317040707,-8943.78386462,0.00018,2]
[328387521,1717317040719,-9077.54866152,0.00018,2]
[328387523,1717317040730,-8943.84023489,0.00018,2]
[328387718,1717317042893,-15141.06854133,0.00018,2]
[328387723,1717317043061,-528544.65175372,0.00018,2]
[328387724,1717317043125,-2934.3557911,0.00018,2]
[328387725,1717317043136,-9180.75804448,0.00018,2]
[328387726,1717317043235,-30221.91641886,0.00018,2]
[328387727,1717317043247,-1868.97347,0.00018,2]
[328387728,1717317043295,-32594.50419869,0.00018,2]
[328389672,1717317062808,334.0351,0.00034645,30]
[328390108,1717317068556,300.0,0.000135,2]
[328390109,1717317071946,11363.98477243,0.00034645,30]
[328390111,1717317200827,-300.0,0.00016516,2]
[328390112,1717317224111,199700.0,0.00014,2]
[328390114,1717317244286,62366.49908675,0.00034645,30]
[328390115,1717317272741,3215.5799,6.94e-05,2]
[328390116,1717317272766,3936.09336353,6.94e-05,2]
[328390117,1717317339620,685.0,0.00034645,30]
[328390122,1717317463582,193.0,0.00034645,30]
[328390124,1717317748218,189.76,0.00029808,30]
[328390145,1717318232062,-2346.49289333,0.00013899,2]
[328390146,1717318232071,-4094.349,0.000139,2]
[328390147,1717318232080,-168.41883938,0.000139,2]
[328390148,1717318232090,-872.58003903,0.000139,2]
[328390149,1717318232099,-2087.38036356,0.000139,2]
[328390150,1717318232109,-6455.92235957,0.000139,2]
[328390151,1717318232119,-2727.42644148,0.000139,2]
[328390152,1717318232128,-153.33,0.0001399,2]
[328390153,1717318232137,-153.33,0.0001399,2]
[328390154,1717318232146,-158.16859392,0.00013998,2]
[328390155,1717318232156,-497487.22826796,0.00014,2]
[328390156,1717318232167,-720.0,0.00014,2]
[328390157,1717318232209,-273817.695506,0.00014,2]
[328390158,1717318232284,-36419.99984,0.00014,2]
[328390159,1717318232296,-6075.0,0.00014,2]
[328390160,1717318232307,-700.0,0.00014,2]
[328390161,1717318232373,-59597.85895692,0.00014,2]
[328390178,1717318238084,-7775.9653312,0.00014,2]
[328390179,1717318238225,-785.96621784,0.00014,2]
[328390180,1717318238237,-999.1292514,0.00014,2]
[328390181,1717318238249,-1981.1914489,0.00014,2]
[328390182,1717318238449,-387.8123766,0.00014,2]
[328390183,1717318238461,-3900.0,0.00014,2]
[328390184,1717318238481,-758.11221771,0.00014,2]
[328390213,1717318240894,-108806.73876758,0.00014,2]
[328390214,1717318241656,-81405.97472739,0.00014,2]
[328390215,1717318241793,-525.73608221,0.00014,2]
[328390218,1717318243165,-15141.06854133,0.00014,2]
[328390224,1717318417504,187.59,0.00029808,30]
[328390225,1717318542519,685.0,0.00034651,30]
[328390227,1717318868682,323.0,0.0003,120]
[328390229,1717319065750,171.95,0.00029808,30]
[328390243,1717319431733,-380.70037141,0.00013721,2]
[328390244,1717319431743,-150.0,0.00013899,2]
[328390245,1717319431752,-556.0592,0.000139,2]
[328390246,1717319431762,-222.32739604,0.000139,2]
[328390247,1717319431771,-169.12858901,0.000139,2]
[328390248,1717319431781,-889.19271766,0.000139,2]
[328390249,1717319431791,-153.33,0.0001399,2]
[328390250,1717319431801,-1245.24151239,0.00013999,2]
[328390251,1717319431812,-1628.93905117,0.00014,2]
[328390255,1717319437754,-999.858006,0.0001372,2]
[328390256,1717319437766,-3149.00662573,0.0001372,2]
[328390257,1717319437917,-999.29999798,0.0001372,2]
[328390258,1717319437929,-1298.10070513,0.0001372,2]
[328390259,1717319437995,-91.79691344,0.0001372,2]
[328390260,1717319438005,-1316.52621377,0.00014,2]
[328390271,1717319440239,-441.72500004,0.00014,2]
[328390272,1717319440353,-1075.18,0.00014,2]
[328390273,1717319441024,-10796.27005223,0.00014,2]
[328390274,1717319441040,-7584.2792057,0.00014,2]
[328390276,1717319442530,-5917.92882967,0.000139,2]
[328390277,1717319442540,-9223.13971166,0.00014,2]
[328390283,1717319445420,-1561.18374677,0.00014,2]
[328390284,1717319445432,-2071.65260249,0.00014,2]
[328390289,1717319609676,157.62,0.00029808,30]
[328390290,1717319641240,330.44974346,0.00034631,30]
[328390291,1717319740057,685.0,0.00034631,30]
[328390297,1717320170365,157.62,0.00029808,30]
[328390298,1717320173584,-155.0,0.00013693,2]
[328390299,1717320227192,362.54770012,0.00013693,2]
[328390300,1717320252972,786.29,0.0001027,2]
[328390302,1717320261095,362.63307101,0.00013693,2]
[328390303,1717320267796,846.405175,0.00013625,2]
[328390304,1717320281094,362.49052641,0.00013693,2]
[328390305,1717320343282,1662.32715,0.00013625,2]
[328390306,1717320370055,496.83937696,0.00013693,2]
[328390308,1717320439300,19758.58446142,0.00013693,2]
[328390309,1717320452106,-412.49,0.00013694,2]
[328390310,1717320452126,-84.35543271,0.00013859,2]
[328390311,1717320457231,19748.35296486,0.00013693,2]
[328390313,1717320476231,20250.08357247,0.00013693,2]
[328390314,1717320496171,836.8298689,0.00013693,2]
[328390315,1717320505387,166649.61613285,0.00013693,2]
[328390316,1717320587160,391.86,0.0001356,2]
[328390319,1717320631609,-1515.85494021,0.00013692,2]
[328390320,1717320631897,-1581.2669112,0.00013692,2]
[328390321,1717320631907,-16470.29226227,0.00013693,2]
[328390322,1717320631920,-4124.999999,0.00013693,2]
[328390323,1717320631932,-683.77346871,0.00013693,2]
[328390333,1717320637701,-675.52005759,0.00013693,2]
[328390334,1717320637712,-3473.36783304,0.00013693,2]
[328390335,1717320637746,-303.29325585,0.00013693,2]
[328390336,1717320637789,-837.696,0.00013693,2]
[328390337,1717320637841,-252.81526454,0.00013693,2]
[328390341,1717320638412,-10274.0346688,0.00013693,2]
[328390398,1717320642824,-519.476,0.00013693,2]
[328390417,1717320642970,-2901.97428567,0.00013693,2]
[328390422,1717320642983,-3441.35125621,0.00013693,2]
[328390424,1717320642994,-1209.58319703,0.00013693,2]
[328390425,1717320643006,-6001.43327852,0.00013693,2]
[328390427,1717320643025,-1485.64601786,0.00013693,2]
[328390428,1717320643037,-843.2287267,0.00013693,2]
[328390429,1717320643066,-5301.01197096,0.00013693,2]
[328390430,1717320643076,-676.01,0.00013693,2]
[328390431,1717320643199,-3487.69244717,0.00013693,2]
[328390432,1717320643214,-2987.54277225,0.00013693,2]
[328390433,1717320643225,-500.0,0.00013693,2]
[328390434,1717320643240,-29483.61195601,0.00013693,2]
[328390435,1717320643251,-1047.43920001,0.00013693,2]
[328390436,1717320643263,-23919.39917311,0.00013693,2]
[328390437,1717320643276,-143919.36956191,0.00013693,2]
[328390438,1717320643287,-1574.50241097,0.00013693,2]
[328390439,1717320643439,-961.51875694,0.00013693,2]
[328390462,1717320645656,-610.990811,0.00013692,2]
[328390471,1717320646397,-535.71711446,0.00013692,2]
[328390472,1717320646413,-397.0,0.00013692,2]
[328390473,1717320646424,-1490.91960079,0.00013692,2]
[328390474,1717320646434,-3133.86839273,0.00013693,2]
[328390475,1717320646445,-61675.83001669,0.00013693,2]
[328390476,1717320646456,-2362.96588127,0.00013693,2]
[328390477,1717320646467,-518.90570714,0.00013693,2]
[328390479,1717320681596,249.93,0.00012355,2]
[328390480,1717320687760,14816.0206,0.00013593,2]
[328390481,1717320689873,112211.39791962,0.0001356,2]
[328390485,1717320747644,8704.0,0.00034637,120]
[328390487,1717320846583,14955.07088062,0.000118,2]
[328390488,1717320863697,157.62,0.00029808,30]
[328390489,1717320946553,13256.5234,0.000295,30]
[328390490,1717320947362,19884.7851,0.000298,30]
[328390491,1717320947577,26513.0468,0.000308,30]
[328390495,1717321146471,372.26,0.0001342,2]
[328390496,1717321188157,166.79,0.00034635,30]
[328390501,1717321400890,157.62,0.00029808,30]
[328390519,1717321832223,-155.0,0.00013713,2]
[328390520,1717321832233,-307.01602266,0.00013714,2]
[328390521,1717321832243,-2169.72319139,0.00013759,2]
[328390565,1717321837922,-2012.04505064,0.00013759,2]
[328390567,1717321837934,-835.20915407,0.00013759,2]
[328390568,1717321837944,-871.14631,0.00013859,2]
[328390569,1717321837953,-924.79150113,0.000139,2]
[328390570,1717321837963,-1162.83929831,0.000139,2]
[328390571,1717321838008,-3887.96353,0.000139,2]
[328390572,1717321838104,-373.96526549,0.000139,2]
[328390573,1717321838115,-592.7951451,0.000139,2]
[328390574,1717321838124,-342.67987929,0.000139,2]
[328390575,1717321838138,-420.8276548,0.000139,2]
[328390576,1717321838147,-153.34,0.0001399,2]
[328390577,1717321838157,-195.42331331,0.00013998,2]
[328390578,1717321838166,-496.84221009,0.00013998,2]
[328390579,1717321838176,-1414.69280578,0.00013998,2]
[328390580,1717321838186,-442.40401602,0.00013998,2]
[328390581,1717321838197,-38.90201828,0.00013998,2]
[328390582,1717321838207,-155.0,0.00013998,2]
[328390583,1717321838216,-255.6503088,0.00013999,2]
[328390584,1717321838225,-499.99,0.00013999,2]
[328390585,1717321838234,-4374.06780852,0.00014,2]
[328390586,1717321838246,-1309.29605926,0.00014,2]
[328390587,1717321838257,-385.64014377,0.00014,2]
[328390588,1717321838276,-177348.05166654,0.00014,2]
[328390589,1717321838289,-1034.62459792,0.00014,2]
[328390590,1717321838305,-19660.40083014,0.00014,2]
[328390685,1717321841471,-676.01,0.00014,2]
[328390691,1717321841541,-950.9011297,0.00014,2]
[328390699,1717321841610,-3933.9,0.00014,2]
[328390759,1717321843164,-850.46092243,0.00014,2]
[328390760,1717321843176,-17649.30776945,0.00014,2]
[328390761,1717321843187,-8745.56519478,0.00014,2]
[328390762,1717321843198,-993.12736041,0.00014,2]
[328390763,1717321843339,-485.85127002,0.00014,2]
[328390764,1717321843397,-22254.01811911,0.00014,2]
[328390915,1717321846078,-161.65774501,0.00013999,2]
[328390916,1717321846088,-227.21443725,0.00013999,2]
[328390917,1717321846098,-698.28381774,0.00014,2]
[328390919,1717321846371,-5391.45167235,0.00014,2]
[328390922,1717321846409,-542.59756573,0.00014,2]
[328390923,1717321846421,-1065.18041574,0.00014,2]
[328390925,1717321851615,2631.23984847,0.00010319,2]
[328390926,1717321905275,353.64,0.00012768,2]
[328390927,1717321924901,6000.0,0.00031,30]
[328390928,1717321999811,500.0,0.00012666,2]
[328390929,1717322143269,50000.0,0.00031,30]
[328390930,1717322166940,167.22,0.00011648,2]
[328390931,1717322416411,157.62,0.00029808,30]
[328390932,1717322433762,335.95,0.00012783,2]
[328390934,1717322779224,315.0,0.0003062,30]
[328390936,1717323031669,157.62,0.00029808,30]
[328390947,1717323032328,-200.0,0.00013699,2]
[328390948,1717323032337,-340.16655421,0.00013757,2]
[328390949,1717323032346,-541.55577053,0.00013757,2]
[328390950,1717323032355,-150.0,0.00013758,2]
[328390951,1717323032366,-11144.35036246,0.00013759,2]
[328390952,1717323032378,-94272.49791261,0.00013759,2]
[328390953,1717323032387,-419.58675705,0.00013833,2]
[328390954,1717323032396,-49330.1015,0.000139,2]
[328390955,1717323032406,-4972.70408602,0.000139,2]
[328390956,1717323032417,-800.75096321,0.000139,2]
[328390957,1717323032426,-1818.28429432,0.000139,2]
[328390958,1717323032436,-314.71739292,0.000139,2]
[328390959,1717323032445,-395.1967634,0.000139,2]
[328390960,1717323032457,-222.32739603,0.000139,2]
[328390961,1717323032468,-182.009454,0.00013998,2]
[328390962,1717323032477,-579.0,0.00014,2]
[328390963,1717323032486,-53093.62262166,0.00014,2]
[328390972,1717323038236,-516.0,0.00014,2]
[328390973,1717323038247,-5265.30376372,0.00014,2]
[328390974,1717323038259,-295.08982449,0.00014,2]
[328390975,1717323038308,-367.18970664,0.00014,2]
[328390976,1717323039723,-857.83662277,0.00014,2]
[328390977,1717323040021,-16788.22358856,0.00014,2]
[328390980,1717323040032,-6670.00918374,0.00014,2]
[328391020,1717323042557,-750.72000001,0.00014,2]
[328391021,1717323042569,-976.78115254,0.00014,2]
[328391022,1717323042581,-1753.22746308,0.00014,2]
[328391023,1717323042603,-1154.05180686,0.00014,2]
[328391055,1717323043745,-869.92,0.0001399,3]
[328391056,1717323043755,-7130.81728599,0.00014,2]
[328391057,1717323043768,-1865.78578036,0.00014,2]
[328391058,1717323043779,-1696.89141431,0.00014,2]
[328391059,1717323043791,-32979.60905728,0.00014,2]
[328391060,1717323043802,-5419.55770639,0.00014,2]
[328391061,1717323043814,-4391.27027424,0.00014,2]
[328391066,1717323046510,-3172.86944583,0.00014,2]
[328391067,1717323046523,-9461.59515863,0.00014,2]
[328391068,1717323046534,-4852.39553538,0.00014,2]
[328391070,1717323061244,319.15,0.00013057,2]
[328391071,1717323705042,303.19,0.00012899,2]
[328391072,1717323717208,157.62,0.00029808,30]
[328391074,1717323851892,-700.0,0.000138,2]
[328391075,1717324040152,-496.8488897,0.000138,2]
[328391080,1717324232470,-468.5538103,0.000138,2]
[328391081,1717324232483,-725.95526,0.0001386,2]
[328391082,1717324232496,-150.0,0.00013899,2]
[328391083,1717324232511,-285.25679341,0.000139,2]
[328391084,1717324232528,-735.80473724,0.000139,2]
[328391085,1717324232543,-966.43463374,0.000139,2]
[328391086,1717324232615,-2647.52084361,0.000139,2]
[328391087,1717324232628,-700.6570928,0.000139,2]
[328391088,1717324232640,-314.71739287,0.000139,2]